bitfinex/quotes_SOLUSD_20230102
["timestamp","ask_amount","ask_price","bid_price","bid_amount"]
[1672656682731,30.0,11.028,11.019,98.17]
[1672656684083,112.7549,11.029,11.019,98.17]
[1672656684290,24.6549,11.029,11.02,17.0]
[1672656684502,24.6549,11.029,11.021,88.15]
[1672656684727,24.6549,11.029,11.022,17.0]
[1672656684945,24.6549,11.029,11.023,88.14]
[1672656685155,68.06,11.037,11.024,30.0]
[1672656685156,30.0,11.036,11.024,30.0]
[1672656685366,68.07,11.035,11.024,194.994]
[1672656685678,30.0,11.034,11.024,194.994]
[1672656685888,68.08,11.033,11.025,23.5648]
[1672656686414,47.0,11.032,11.025,23.5648]
[1672656690299,17.0,11.032,11.025,23.5648]
[1672656691562,17.0,11.032,11.025,53.5648]
[1672656691775,17.0,11.032,11.025,23.5648]
[1672656692608,17.0,11.032,11.026,30.0]
[1672656693032,17.0,11.031,11.025,53.5648]
[1672656693231,68.09,11.032,11.025,23.5648]
[1672656693441,17.0,11.031,11.025,53.5648]
[1672656695452,17.0,11.032,11.025,53.5648]
[1672656695666,17.0,11.032,11.025,23.5648]
[1672656696277,30.0,11.035,11.025,23.5648]
[1672656696278,22.6196,11.037,11.026,30.0]
[1672656696616,22.6196,11.037,11.027,91.5347]
[1672656696812,22.6196,11.037,11.028,30.0]
[1672656697031,30.0,11.036,11.028,30.0]
[1672656697230,90.6796,11.037,11.028,30.0]
[1672656697432,30.0,11.036,11.027,91.5347]
[1672656697654,68.07,11.035,11.027,23.4147]
[1672656698598,98.06,11.036,11.027,23.4147]
[1672656699007,68.06,11.036,11.027,23.4147]
[1672656699239,120.6796,11.037,11.029,30.0]
[1672656699427,68.06,11.037,11.029,30.0]
[1672656700800,30.0,11.036,11.028,40.6984]
[1672656701637,68.07,11.035,11.028,40.6984]
[1672656701852,98.06,11.036,11.028,40.6984]
[1672656702291,98.06,11.037,11.029,30.0]
[1672656702484,98.06,11.037,11.028,23.6984]
[1672656705117,98.06,11.037,11.028,53.6984]
[1672656705848,98.06,11.037,11.028,23.6984]
[1672656706059,68.06,11.037,11.028,53.6984]
[1672656706387,68.06,11.037,11.029,17.0]
[1672656707110,30.0,11.036,11.028,23.6984]
[1672656707532,30.0,11.036,11.028,53.6984]
[1672656708474,30.0,11.036,11.028,23.6984]
[1672656708687,68.07,11.035,11.028,23.6984]
[1672656709001,30.0,11.034,11.028,23.6984]
[1672656709537,68.07,11.035,11.028,23.6984]
[1672656710924,68.07,11.035,11.028,53.6984]
[1672656711131,30.0,11.035,11.028,23.6984]
[1672656714396,68.06,11.036,11.028,23.6984]
[1672656714807,30.0,11.035,11.028,23.6984]
[1672656715018,30.0,11.033,11.028,23.6984]
[1672656715340,68.07,11.034,11.028,23.6984]
[1672656715658,30.0,11.033,11.028,23.6984]
[1672656717641,68.07,11.034,11.028,23.6984]
[1672656718592,68.06,11.036,11.028,23.6984]
[1672656718805,30.0,11.035,11.028,23.6984]
[1672656719342,68.06,11.036,11.028,23.6984]
[1672656719652,68.06,11.037,11.029,30.0]
[1672656720689,47.0,11.036,11.029,30.0]
[1672656720904,17.0,11.036,11.029,30.0]
[1672656721873,47.0,11.036,11.028,53.6984]
[1672656722079,68.07,11.035,11.028,53.6984]
[1672656722298,47.0,11.036,11.028,53.6984]
[1672656723324,47.0,11.036,11.028,23.6984]
[1672656723534,17.0,11.036,11.029,30.0]
[1672656724814,17.0,11.036,11.028,53.6984]
[1672656725220,17.0,11.036,11.029,30.0]
[1672656726707,47.0,11.036,11.028,53.6984]
[1672656726919,17.0,11.036,11.028,53.6984]
[1672656727434,17.0,11.036,11.028,23.6984]
[1672656727653,30.0,11.035,11.028,23.6984]
[1672656727858,30.0,11.033,11.028,23.6984]
[1672656728811,68.07,11.034,11.028,23.6984]
[1672656729020,30.0,11.035,11.028,23.6984]
[1672656731953,68.06,11.036,11.028,53.6984]
[1672656732277,68.06,11.036,11.028,23.6984]
[1672656732597,30.0,11.035,11.028,23.6984]
[1672656734386,68.06,11.036,11.028,23.6984]
[1672656734999,68.06,11.036,11.028,53.6984]
[1672656735433,68.06,11.036,11.028,23.6984]
[1672656736902,68.06,11.036,11.028,53.6984]
[1672656737747,68.06,11.036,11.028,23.6984]
[1672656739216,30.0,11.035,11.028,23.6984]
[1672656739966,68.06,11.036,11.028,53.6984]
[1672656740284,68.06,11.036,11.028,23.6984]
[1672656740582,30.0,11.035,11.028,23.6984]
[1672656741837,68.06,11.036,11.028,23.6984]
[1672656742037,68.06,11.036,11.028,53.6984]
[1672656742876,68.06,11.036,11.028,23.6984]
[1672656743087,30.0,11.035,11.028,23.6984]
[1672656745097,68.06,11.036,11.028,23.6984]
[1672656745943,30.0,11.035,11.028,23.6984]
[1672656746355,68.07,11.034,11.028,23.6984]
[1672656746568,30.0,11.033,11.028,23.6984]
[1672656747408,68.07,11.034,11.028,23.6984]
[1672656747641,30.0,11.033,11.028,23.6984]
[1672656747843,68.07,11.034,11.028,23.6984]
[1672656748051,30.0,11.035,11.028,23.6984]
[1672656750578,30.0,11.033,11.028,23.6984]
[1672656751304,68.07,11.034,11.028,23.6984]
[1672656751516,30.0,11.035,11.028,23.6984]
[1672656751728,30.0,11.033,11.028,23.6984]
[1672656752683,68.07,11.034,11.028,23.6984]
[1672656752894,30.0,11.035,11.028,23.6984]
[1672656757401,68.06,11.036,11.028,23.6984]
[1672656757819,30.0,11.035,11.028,23.6984]
[1672656758882,30.0,11.033,11.028,23.6984]
[1672656762121,68.07,11.034,11.028,23.6984]
[1672656762550,30.0,11.035,11.028,23.6984]
[1672656762882,68.07,11.034,11.028,23.6984]
[1672656764236,68.07,11.034,11.028,22.6984]
[1672656764447,68.06,11.036,11.029,17.0]
[1672656764658,68.06,11.037,11.029,17.0]
[1672656765061,114.727,11.038,11.029,17.0]
[1672656765390,30.0,11.037,11.029,17.0]
[1672656765605,144.727,11.038,11.029,17.0]
[1672656766218,30.0,11.037,11.029,17.0]
[1672656769179,114.727,11.038,11.029,17.0]
[1672656769385,114.727,11.038,11.029,41.8046]
[1672656769598,30.0,11.037,11.029,41.8046]
[1672656772019,114.727,11.038,11.03,30.0]
[1672656772425,30.0,11.037,11.029,41.8046]
[1672656772945,114.727,11.038,11.029,41.8046]
[1672656773156,114.727,11.038,11.03,30.0]
[1672656773366,114.727,11.038,11.031,17.0]
[1672656773575,30.0,11.037,11.03,23.5998]
[1672656773804,68.06,11.036,11.03,23.5998]
[1672656774429,47.0,11.035,11.03,23.5998]
[1672656778214,68.06,11.036,11.03,23.5998]
[1672656778410,30.0,11.036,11.03,23.5998]
[1672656779463,30.0,11.034,11.03,23.5998]
[1672656780731,68.07,11.035,11.03,23.5998]
[1672656782718,98.06,11.036,11.03,23.5998]
[1672656783888,17.0,11.035,11.03,23.5998]
[1672656785495,68.06,11.036,11.03,23.5998]
[1672656785707,98.06,11.037,11.03,23.5998]
[1672656789681,68.06,11.037,11.03,23.5998]
[1672656790016,68.06,11.037,11.03,53.5998]
[1672656791179,68.06,11.037,11.03,23.5998]
[1672656792846,30.0,11.036,11.03,23.5998]
[1672656793165,68.07,11.035,11.03,23.5998]
[1672656794419,30.0,11.034,11.03,23.5998]
[1672656795893,68.07,11.035,11.03,23.5998]
[1672656796610,68.06,11.036,11.03,23.5998]
[1672656796822,30.0,11.035,11.03,23.5998]
[1672656797368,68.06,11.036,11.03,23.5998]
[1672656797584,30.0,11.035,11.03,23.5998]
[1672656798840,68.06,11.036,11.03,23.5998]
[1672656799783,68.06,11.036,11.031,30.0]
[1672656799994,30.0,11.036,11.031,30.0]
[1672656800205,30.0,11.036,11.03,53.5998]
[1672656800518,68.06,11.037,11.03,53.5998]
[1672656800727,68.06,11.037,11.03,23.5998]
[1672656800943,30.0,11.036,11.03,23.5998]
[1672656801261,68.06,11.037,11.03,23.5998]
[1672656801970,68.06,11.037,11.03,53.5998]
[1672656803343,30.0,11.036,11.03,23.5998]
[1672656803556,68.06,11.037,11.03,53.5998]
[1672656803873,30.0,11.036,11.031,17.0]
[1672656804084,30.0,11.036,11.03,23.5998]
[1672656806493,98.06,11.037,11.03,23.5998]
[1672656807575,30.0,11.036,11.03,23.5998]
[1672656808072,68.06,11.037,11.03,23.5998]
[1672656809559,68.06,11.037,11.031,17.0]
[1672656809877,30.0,11.036,11.03,23.5998]
[1672656811353,98.06,11.037,11.03,23.5998]
[1672656811573,30.0,11.036,11.03,23.5998]
[1672656812706,68.06,11.037,11.03,53.5998]
[1672656813672,68.06,11.037,11.03,23.5998]
[1672656813859,68.06,11.037,11.03,53.5998]
[1672656814391,68.06,11.037,11.031,17.0]
[1672656817347,68.06,11.037,11.031,47.0]
[1672656817767,68.06,11.037,11.03,53.5998]
[1672656817981,98.06,11.037,11.03,23.5998]
[1672656818403,68.06,11.037,11.03,23.5998]
[1672656818721,68.06,11.037,11.03,53.5998]
[1672656819131,552.13803403,11.049,11.031,186.05477859]
[1672656819331,22.8626,11.049,11.032,262.2]
[1672656819548,22.8626,11.049,11.033,88.08]
[1672656819868,9.43,11.05,11.035,30.0]
[1672656819869,30.0,11.047,11.035,30.0]
[1672656820088,68.0,11.046,11.036,17.0]
[1672656820696,68.0,11.046,11.037,186.75985576]
[1672656820898,48.5304,11.048,11.038,47.0]
[1672656821127,67.99,11.047,11.038,257.54035576]
[1672656821344,67.99,11.047,11.04,30.0]
[1672656821552,67.99,11.047,11.039,122.29140213]
[1672656821952,17.0,11.046,11.039,122.29140213]
[1672656822697,67.99,11.047,11.039,122.29140213]
[1672656823025,67.99,11.047,11.039,152.29140213]
[1672656823545,67.99,11.047,11.04,17.0]
[1672656824372,67.99,11.047,11.039,122.29140213]
[1672656824574,67.99,11.047,11.04,30.0]
[1672656824909,67.99,11.047,11.039,152.29140213]
[1672656825316,67.99,11.047,11.04,30.0]
[1672656825529,67.99,11.047,11.039,152.29140213]
[1672656825742,67.99,11.047,11.04,47.0]
[1672656826056,30.0,11.046,11.04,17.0]
[1672656826277,30.0,11.046,11.039,122.29140213]
[1672656826588,30.0,11.046,11.039,23.7805]
[1672656828693,67.99,11.047,11.039,23.7805]
[1672656828909,48.5304,11.048,11.04,47.0]
[1672656829114,30.0,11.046,11.039,23.7805]
[1672656829849,67.99,11.047,11.04,30.0]
[1672656830170,67.99,11.047,11.039,53.7805]
[1672656830994,67.99,11.047,11.041,30.0]
[1672656831411,67.99,11.047,11.04,47.0]
[1672656831620,67.99,11.047,11.04,17.0]
[1672656831845,30.0,11.046,11.039,23.7805]
[1672656832056,47.0,11.046,11.039,23.7805]
[1672656833514,47.0,11.046,11.028,52.5612]
[1672656833515,30.0,11.044,11.028,52.5612]
[1672656833719,68.02,11.043,11.028,52.5612]
[1672656833936,67.0,11.042,11.029,30.0]
[1672656834147,30.0,11.04,11.029,98.1]
[1672656834462,88.04,11.039,11.029,98.1]
[1672656835524,20.0,11.039,11.029,98.1]
[1672656836356,20.0,11.039,11.032,17.0]
[1672656838683,20.0,11.039,11.033,30.0]
[1672656838893,20.0,11.039,11.034,17.0]
[1672656840242,20.0,11.039,11.033,17.0]
[1672656840677,20.0,11.039,11.034,30.0]
[1672656840886,20.0,11.039,11.035,17.0]
[1672656842151,20.0,11.039,11.034,17.0]
[1672656842570,20.0,11.039,11.033,17.0]
[1672656844975,68.04,11.04,11.034,20.0]
[1672656845204,68.01,11.045,11.036,30.0]
[1672656845401,30.0,11.043,11.035,46.9197]
[1672656845611,68.02,11.042,11.035,46.9197]
[1672656845937,68.02,11.042,11.036,30.0]
[1672656846343,68.02,11.043,11.036,30.0]
[1672656846555,68.02,11.043,11.035,76.9197]
[1672656846761,68.02,11.043,11.036,30.0]
[1672656848462,68.02,11.043,11.035,30.0]
[1672656848775,68.02,11.043,11.034,30.0]
[1672656848966,68.02,11.043,11.035,17.0]
[1672656851506,30.0,11.047,11.036,30.0]
[1672656851824,68.0,11.046,11.037,17.0]
[1672656852226,30.0,11.047,11.037,17.0]
[1672656852545,68.0,11.046,11.038,30.0]
[1672656852747,68.0,11.046,11.039,17.0]
[1672656854228,30.0,11.047,11.039,17.0]
[1672656854450,30.0,11.045,11.038,41.732]
[1672656854958,68.0,11.046,11.038,41.732]
[1672656855801,30.0,11.045,11.038,24.732]
[1672656856012,30.0,11.043,11.038,24.732]
[1672656856431,68.01,11.044,11.038,24.732]
[1672656857497,30.0,11.045,11.038,24.732]
[1672656857688,68.01,11.044,11.038,24.732]
[1672656858628,68.0,11.046,11.038,24.732]
[1672656858871,68.0,11.046,11.04,30.0]
[1672656859263,68.0,11.046,11.038,24.732]
[1672656859471,30.0,11.044,11.038,24.732]
[1672656859909,68.01,11.044,11.038,24.732]
[1672656863600,68.0,11.046,11.038,24.732]
[1672656863906,30.0,11.045,11.038,24.732]
[1672656864125,68.01,11.044,11.038,24.732]
[1672656865160,30.0,11.045,11.038,24.732]
[1672656865490,68.01,11.044,11.038,24.732]
[1672656865885,68.0,11.046,11.039,47.0]
[1672656866112,67.99,11.047,11.039,47.0]
[1672656867792,30.0,11.046,11.039,17.0]
[1672656868112,68.01,11.045,11.039,17.0]
[1672656869902,30.0,11.046,11.039,17.0]
[1672656870110,68.01,11.045,11.039,17.0]
[1672656872213,30.0,11.046,11.039,17.0]
[1672656872421,68.01,11.045,11.039,17.0]
[1672656874313,67.99,11.047,11.04,30.0]
[1672656875165,30.0,11.047,11.04,30.0]
[1672656875365,68.0,11.046,11.039,47.0]
[1672656875884,68.0,11.046,11.039,17.0]
[1672656877061,30.0,11.047,11.04,30.0]
[1672656877244,68.0,11.046,11.039,41.7618]
[1672656877566,68.0,11.046,11.04,30.0]
[1672656877779,67.99,11.048,11.041,17.0]
[1672656878097,67.99,11.048,11.04,30.0]
[1672656878289,67.99,11.048,11.041,17.0]
[1672656878500,30.0,11.047,11.04,30.0]
[1672656878714,68.0,11.046,11.04,30.0]
[1672656879367,68.0,11.046,11.039,54.7618]
[1672656879578,68.0,11.046,11.04,17.0]
[1672656880426,67.99,11.048,11.041,30.0]
[1672656880625,67.99,11.048,11.042,17.0]
[1672656883995,67.99,11.048,11.041,17.0]
[1672656887886,30.0,11.047,11.04,23.8376]
[1672656888410,68.0,11.046,11.04,23.8376]
[1672656888941,30.0,11.045,11.04,23.8376]
[1672656889568,30.0,11.045,11.041,17.0]
[1672656889766,68.0,11.046,11.041,17.0]
[1672656889980,30.0,11.045,11.041,17.0]
[1672656891255,68.0,11.046,11.041,17.0]
[1672656893758,67.99,11.047,11.041,17.0]
[1672656895441,30.0,11.047,11.041,17.0]
[1672656895652,68.0,11.046,11.041,17.0]
[1672656896076,67.99,11.048,11.042,30.0]
[1672656896288,67.99,11.048,11.043,17.0]
[1672656896934,67.99,11.048,11.042,17.0]
[1672656897757,30.0,11.047,11.042,17.0]
[1672656897968,30.0,11.047,11.04,23.8376]
[1672656898178,30.0,11.047,11.041,17.0]
[1672656899244,30.0,11.047,11.04,23.8376]
[1672656899549,30.0,11.045,11.04,23.8376]
[1672656899769,30.0,11.043,11.04,23.8376]
[1672656899979,68.02,11.042,11.039,23.591]
[1672656900294,68.02,11.042,11.035,30.0]
[1672656900816,30.0,11.043,11.032,68.09]
[1672656901024,88.02,11.042,11.031,39.23855]
[1672656901238,30.0,11.04,11.032,30.0]
[1672656901477,20.0,11.039,11.032,30.0]
[1672656901773,20.0,11.039,11.031,39.23855]
[1672656901965,20.0,11.039,11.031,22.5025]
[1672656902492,30.0,11.037,11.031,22.5025]
[1672656904078,68.06,11.036,11.031,22.5025]
[1672656904612,68.06,11.036,11.03,133.0615]
[1672656905127,30.0,11.035,11.027,0.0053]
[1672656905341,30.0,11.033,11.021,68.15]
[1672656905557,30.0,11.033,11.018,186.7504]
[1672656905558,88.09,11.032,11.018,186.7504]
[1672656905769,9.31,11.03,11.019,30.0]
[1672656905964,88.1,11.029,11.02,68.16]
[1672656906168,30.0,11.028,11.02,68.16]
[1672656906587,88.1,11.029,11.02,68.16]
[1672656906816,30.0,11.028,11.02,68.16]
[1672656907032,88.1,11.029,11.021,30.0]
[1672656907650,42.9359,11.029,11.021,30.0]
[1672656908065,42.9359,11.029,11.02,93.24730786]
[1672656908066,30.0,11.028,11.02,68.16]
[1672656908396,30.0,11.028,11.019,68.17]
[1672656908605,98.11,11.028,11.019,68.17]
[1672656910288,68.11,11.028,11.02,30.0]
[1672656910499,111.0359,11.029,11.02,30.0]
[1672656910814,42.9359,11.029,11.02,30.0]
[1672656911242,42.9359,11.029,11.021,17.0]
[1672656911866,42.9359,11.029,11.022,30.0]
[1672656912064,42.9359,11.029,11.023,17.0]
[1672656913861,68.06,11.036,11.025,30.0]
[1672656914074,30.0,11.036,11.026,85.12]
[1672656914289,68.07,11.035,11.026,85.12]
[1672656914498,30.0,11.034,11.026,85.12]
[1672656915427,68.07,11.035,11.026,85.12]
[1672656915641,30.0,11.036,11.026,85.12]
[1672656916055,30.0,11.036,11.027,30.0]
[1672656916261,30.0,11.036,11.028,17.0]
[1672656916691,30.0,11.036,11.027,30.0]
[1672656919954,68.06,11.037,11.027,30.0]
[1672656920158,68.06,11.037,11.028,17.0]
[1672656920368,91.1227,11.038,11.028,17.0]
[1672656921004,91.1227,11.038,11.029,30.0]
[1672656921217,91.1227,11.038,11.03,17.0]
[1672656922281,30.0,11.037,11.03,17.0]
[1672656923018,30.0,11.037,11.029,30.0]
[1672656923415,91.1227,11.038,11.029,30.0]
[1672656923631,91.1227,11.038,11.03,17.0]
[1672656926482,47.0,11.037,11.028,91.436]
[1672656926691,30.0,11.035,11.028,23.326]
[1672656926911,68.06,11.036,11.027,145.5539]
[1672656927318,68.06,11.036,11.027,161.36120786]
[1672656927531,68.06,11.037,11.029,30.0]
[1672656927742,91.1227,11.038,11.03,17.0]
[1672656931728,91.1227,11.038,11.028,52.5212]
[1672656932145,30.0,11.037,11.028,52.5212]
[1672656932364,68.06,11.036,11.028,52.5212]
[1672656933518,68.06,11.037,11.03,30.0]
[1672656933731,68.06,11.037,11.031,17.0]
[1672656934903,68.06,11.037,11.029,30.0]
[1672656934904,17.0,11.036,11.029,30.0]
[1672656935307,68.07,11.035,11.029,30.0]
[1672656936585,68.07,11.035,11.028,52.5212]
[1672656939941,91.439,11.037,11.029,115.1]
[1672656940158,23.379,11.037,11.029,115.1]
[1672656942553,91.439,11.037,11.029,47.0]
[1672656942764,23.379,11.037,11.029,47.0]
[1672656946145,23.379,11.037,11.029,17.0]
[1672656946345,30.0,11.035,11.028,22.5212]
[1672656946571,107.853,11.036,11.028,22.5212]
[1672656946881,22.793,11.036,11.029,98.1]
[1672656950034,46.69,11.05,11.03,62.11730786]
[1672656950266,30.0,11.045,11.033,30.0]
[1672656950453,30.0,11.045,11.035,30.0]
[1672656950780,68.01,11.044,11.035,30.0]
[1672656951183,68.01,11.044,11.034,228.6834]
[1672656951524,30.0,11.043,11.034,228.6834]
[1672656951721,17.0,11.042,11.034,228.6834]
[1672656952465,17.0,11.042,11.034,160.6134]
[1672656952667,30.0,11.041,11.034,160.6134]
[1672656952877,17.0,11.04,11.034,160.6134]
[1672656953202,17.0,11.04,11.033,68.08]
[1672656953403,17.0,11.04,11.034,20.0]
[1672656954031,17.0,11.04,11.034,30.0]
[1672656954240,17.0,11.04,11.033,20.0]
[1672656954456,17.0,11.04,11.033,50.0]
[1672656954774,30.0,11.045,11.033,50.0]
[1672656954775,68.01,11.045,11.035,30.0]
[1672656955303,30.0,11.044,11.034,90.9211]
[1672656955514,30.0,11.042,11.034,90.9211]
[1672656955733,68.02,11.043,11.034,22.8511]
[1672656956035,17.0,11.042,11.034,22.8511]
[1672656956248,47.0,11.042,11.034,22.8511]
[1672656957524,17.0,11.042,11.034,52.8511]
[1672656957829,47.0,11.042,11.034,22.8511]
[1672656958030,9.35,11.04,11.031,68.09]
[1672656958248,118.04,11.039,11.027,91.2438]
[1672656958448,30.0,11.037,11.028,30.0]
[1672656958654,30.0,11.046,11.031,30.0]
[1672656958869,22.7956,11.045,11.032,88.09]
[1672656959191,30.0,11.044,11.033,30.0]
[1672656959408,68.02,11.043,11.034,20.0]
[1672656959617,30.0,11.042,11.034,20.0]
[1672656960039,17.0,11.041,11.034,20.0]
[1672656960984,17.0,11.041,11.033,50.0]
[1672656961927,17.0,11.041,11.033,20.0]
[1672656962330,68.04,11.04,11.033,20.0]
[1672656962541,68.03,11.041,11.033,20.0]
[1672656962755,30.0,11.042,11.033,50.0]
[1672656964033,17.0,11.041,11.033,50.0]
[1672656964874,17.0,11.041,11.033,20.0]
[1672656965085,22.7956,11.045,11.034,98.07]
[1672656965293,22.7956,11.045,11.035,17.0]
[1672656965502,22.7956,11.045,11.036,98.06]
[1672656966743,17.0,11.044,11.036,98.06]
[1672656966958,47.0,11.044,11.036,98.06]
[1672656967168,17.0,11.044,11.036,98.06]
[1672656967390,22.7956,11.045,11.036,98.06]
[1672656968218,86.89382762,11.05,11.036,98.06]
[1672656968219,67.96,11.052,11.038,30.0]
[1672656968429,229.5915,11.056,11.039,68.04]
[1672656968643,98.21637171,11.055,11.04,30.0]
[1672656968869,30.0,11.049,11.041,68.03]
[1672656969299,30.0,11.049,11.039,68.04]
[1672656969509,23.5303,11.048,11.039,68.04]
[1672656970441,23.5303,11.048,11.04,30.0]
[1672656971486,23.5303,11.048,11.04,45.80730786]
[1672656971692,23.5303,11.048,11.04,30.0]
[1672656971911,23.5303,11.048,11.042,30.0]
[1672656972139,53.5107,11.053,11.042,30.0]
[1672656972140,67.96,11.053,11.042,30.0]
[1672656972333,23.1192,11.055,11.043,88.02]
[1672656972662,30.0,11.053,11.043,134.3723]
[1672656972865,67.96,11.052,11.043,134.3723]
[1672656973076,30.0,11.051,11.043,134.3723]
[1672656973492,30.0,11.053,11.036,30.0]
[1672656973706,45.8875,11.05,11.037,30.0]
[1672656973900,179.59,11.052,11.037,30.0]
[1672656973901,30.0,11.048,11.037,30.0]
[1672656974111,22.7632,11.047,11.039,30.0]
[1672656974321,22.7632,11.047,11.041,30.0]
[1672656975373,22.7632,11.047,11.04,68.04]
[1672656976552,22.7632,11.047,11.041,30.0]
[1672656980436,67.96,11.052,11.043,30.0]
[1672656980758,67.95,11.054,11.044,37.0]
[1672656980959,67.95,11.054,11.045,30.0]
[1672656982753,30.0,11.053,11.044,20.0]
[1672656982953,30.0,11.051,11.044,20.0]
[1672656983167,67.96,11.052,11.044,20.0]
[1672656985809,67.96,11.053,11.044,20.0]
[1672656985997,30.0,11.052,11.044,20.0]
[1672656986337,30.0,11.052,11.043,173.1738]
[1672656986644,30.0,11.052,11.044,20.0]
[1672656987065,30.0,11.05,11.044,20.0]
[1672656987277,67.97,11.051,11.044,50.0]
[1672656988218,30.0,11.052,11.044,50.0]
[1672656988856,30.0,11.052,11.044,20.0]
[1672656990218,30.0,11.052,11.045,30.0]
[1672656990411,30.0,11.052,11.044,20.0]
[1672656991266,30.0,11.05,11.044,20.0]
[1672656991905,67.97,11.051,11.044,20.0]
[1672656992540,30.0,11.052,11.044,20.0]
[1672656994420,30.0,11.049,11.038,68.05]
[1672656994633,30.0,11.047,11.037,30.0]
[1672656994837,30.0,11.047,11.038,68.05]
[1672656995051,30.0,11.047,11.039,30.0]
[1672656995263,54.1885,11.047,11.039,30.0]
[1672656996413,24.1885,11.047,11.039,30.0]
[1672656997785,67.98,11.049,11.039,45.80730786]
[1672656998116,24.1885,11.048,11.041,30.0]
[1672656998310,23.8813,11.05,11.043,30.0]
[1672656998512,53.8813,11.05,11.042,68.02]
[1672656998960,53.8813,11.05,11.039,68.04]
[1672656998961,30.0,11.049,11.039,68.04]
[1672656999269,67.99,11.048,11.04,30.0]
[1672656999478,30.0,11.05,11.041,20.0]
[1672656999670,67.98,11.049,11.041,20.0]
[1672657000092,67.98,11.049,11.042,30.0]
[1672657000301,67.97,11.051,11.043,20.0]
[1672657000527,30.0,11.05,11.043,20.0]
[1672657001247,67.97,11.051,11.043,20.0]
[1672657001460,30.0,11.052,11.043,20.0]
[1672657001683,67.97,11.051,11.043,20.0]
[1672657001877,30.0,11.052,11.043,20.0]
[1672657003583,67.96,11.053,11.044,30.0]
[1672657003795,67.95,11.054,11.044,30.0]
[1672657004098,30.0,11.053,11.044,30.0]
[1672657004723,67.95,11.054,11.044,30.0]
[1672657005046,67.95,11.054,11.045,17.0]
[1672657005258,67.95,11.054,11.046,30.0]
[1672657006505,91.696,11.055,11.046,30.0]
[1672657007139,91.696,11.055,11.044,240.0796]
[1672657007349,91.696,11.055,11.045,17.0]